fUSD/lending_fUSD_20250105
["ID","MTS","AMOUNT","RATE_DAILY","PERIOD"]
[347671925,1736047851572,-504.95817072,0.00012048,2]
[347671927,1736047851581,-500.0,0.00012048,2]
[347671929,1736047851590,-500.0,0.00012048,2]
[347671931,1736047851599,-500.0,0.00012048,2]
[347671933,1736047851608,-500.0,0.00012048,2]
[347671935,1736047851617,-500.0,0.00012048,2]
[347671937,1736047851626,-500.0,0.00012048,2]
[347671939,1736047851635,-500.0,0.00012048,2]
[347671941,1736047851645,-500.0,0.00012048,2]
[347671943,1736047851654,-502.18103202,0.00012048,2]
[347671945,1736047851663,-500.0,0.00012048,2]
[347671947,1736047851672,-384.90764296,0.00012048,2]
[347671949,1736047851681,-500.0,0.00012048,2]
[347671951,1736047851690,-500.0,0.00012048,2]
[347671952,1736047851699,-500.0,0.00012048,2]
[347671954,1736047851708,-500.0,0.00012048,2]
[347671956,1736047851717,-500.0,0.00012048,2]
[347671958,1736047851726,-500.0,0.00012048,2]
[347671960,1736047851735,-500.0,0.00012048,2]
[347671977,1736047851881,-500.0,0.00012048,2]
[347671979,1736047851891,-500.0,0.00012048,2]
[347671981,1736047851901,-500.0,0.00012048,2]
[347671983,1736047851911,-402.86909093,0.00012048,2]
[347671985,1736047851921,-500.0,0.00012048,2]
[347671987,1736047851930,-500.0,0.00012048,2]
[347671989,1736047851940,-500.0,0.00012048,2]
[347671991,1736047851950,-500.0,0.00012048,2]
[347671993,1736047851960,-500.0,0.00012048,2]
[347671995,1736047851969,-500.99393048,0.00012048,2]
[347671997,1736047851979,-500.74995597,0.00012048,2]
[347671999,1736047851988,-500.86783096,0.00012048,2]
[347672001,1736047851998,-500.60385394,0.00012048,2]
[347672003,1736047852007,-500.1750417,0.00012048,2]
[347672005,1736047852017,-500.23268199,0.00012048,2]
[347672007,1736047852027,-500.41894068,0.00012048,2]
[347672009,1736047852037,-500.16139071,0.00012048,2]
[347672011,1736047852046,-500.21264527,0.00012048,2]
[347672013,1736047852056,-500.40427127,0.00012048,2]
[347672015,1736047852065,-500.42568864,0.00012048,2]
[347672017,1736047852076,-500.80186541,0.00012048,2]
[347672019,1736047852085,-500.64882358,0.00012048,2]
[347672021,1736047852095,-501.07754259,0.00012048,2]
[347672023,1736047852105,-500.0,0.00012048,2]
[347672025,1736047852115,-503.4029258,0.00012048,2]
[347672027,1736047852125,-500.28490821,0.00012048,2]
[347672029,1736047852134,-500.0,0.00012048,2]
[347672031,1736047852143,-500.0,0.00012048,2]
[347672033,1736047852153,-500.64532346,0.00012048,2]
[347672035,1736047852163,-501.31350924,0.00012048,2]
[347672037,1736047852173,-336.52190028,0.00012048,2]
[347672039,1736047852182,-500.47890346,0.00012048,2]
[347672041,1736047852191,-500.19984421,0.00012048,2]
[347672043,1736047852201,-500.21574863,0.00012048,2]
[347672045,1736047852210,-500.0,0.00012048,2]
[347672047,1736047852220,-500.69339977,0.00012048,2]
[347672049,1736047852230,-500.96647758,0.00012048,2]
[347672051,1736047852239,-500.0,0.00012048,2]
[347672053,1736047852249,-500.49526114,0.00012048,2]
[347672055,1736047852258,-500.68368904,0.00012048,2]
[347672057,1736047852268,-500.0,0.00012048,2]
[347672059,1736047852277,-514.57041801,0.00012048,2]
[347672061,1736047852286,-500.44156331,0.00012048,2]
[347672063,1736047852296,-500.41384006,0.00012048,2]
[347672065,1736047852305,-413.00730453,0.00012048,2]
[347672067,1736047852315,-225.19484377,0.00012048,2]
[347672069,1736047852325,-500.75590102,0.00012048,2]
[347672070,1736047852334,-500.64846928,0.00012048,2]
[347672072,1736047852343,-498.77297737,0.00012048,2]
[347672074,1736047852351,-501.51005133,0.00012048,2]
[347672076,1736047852360,-500.6569366,0.00012048,2]
[347672078,1736047852370,-500.34199055,0.00012048,2]
[347672080,1736047852379,-500.70753946,0.00012048,2]
[347672082,1736047852388,-500.0,0.00012048,2]
[347672084,1736047852398,-500.0,0.00012048,2]
[347672086,1736047852407,-623.93,0.00012048,2]
[347672088,1736047852416,-500.18250638,0.00012048,2]
[347672090,1736047852425,-501.09355659,0.00012048,2]
[347672092,1736047852435,-411.08089033,0.00012048,2]
[347672094,1736047852443,-500.63761768,0.00012048,2]
[347672096,1736047852453,-500.98202875,0.00012048,2]
[347672099,1736047852462,-501.24079535,0.00012048,2]
[347672101,1736047852471,-500.88819457,0.00012048,2]
[347672103,1736047852481,-501.23553779,0.00012048,2]
[347672104,1736047852490,-561.32460911,0.00012048,2]
[347672106,1736047852499,-500.6823942,0.00012048,2]
[347672108,1736047852508,-500.73175636,0.00012048,2]
[347672110,1736047852517,-500.0,0.00012048,2]
[347672112,1736047852526,-500.76488836,0.00012048,2]
[347672114,1736047852535,-501.45949242,0.00012048,2]
[347672116,1736047852549,-500.19701328,0.00012048,2]
[347672118,1736047852559,-500.91820286,0.00012048,2]
[347672120,1736047852568,-500.0,0.00012048,2]
[347672122,1736047852578,-788.27,0.00012048,2]
[347672124,1736047852587,-500.44863044,0.00012048,2]
[347672125,1736047852596,-500.2038561,0.00012048,2]
[347672126,1736047852605,-859.07,0.00012048,2]
[347672127,1736047852614,-501.05350647,0.00012048,2]
[347672128,1736047852623,-500.47402678,0.00012048,2]
[347672129,1736047852632,-500.0,0.00012048,2]
[347672130,1736047852642,-500.0,0.00012048,2]
[347672131,1736047852651,-500.0,0.00012048,2]
[347672132,1736047852661,-500.66213278,0.00012048,2]
[347672133,1736047852670,-500.74762661,0.00012048,2]
[347672134,1736047852679,-500.47044483,0.00012048,2]
[347672135,1736047852688,-501.29295027,0.00012048,2]
[347672136,1736047852697,-500.59246346,0.00012048,2]
[347672138,1736047852706,-500.7940017,0.00012048,2]
[347672140,1736047852715,-500.80924848,0.00012048,2]
[347672142,1736047852724,-500.83921767,0.00012048,2]
[347672144,1736047852735,-338.54386903,0.00012048,2]
[347672145,1736047852744,-500.72855959,0.00012048,2]
[347672148,1736047852754,-372.5797741,0.00012048,2]
[347672149,1736047852763,-500.0,0.00012048,2]
[347672152,1736047852772,-500.75364137,0.00012048,2]
[347672153,1736047852781,-212.34251031,0.00012048,2]
[347672155,1736047852790,-500.0,0.00012048,2]
[347672157,1736047852799,-501.44043985,0.00012048,2]
[347672160,1736047852808,-500.0,0.00012049,2]
[347672162,1736047852818,-542.64,0.00012049,2]
[347672163,1736047852828,-500.0,0.00012049,2]
[347672165,1736047852837,-500.0,0.00012049,2]
[347672168,1736047852847,-502.19318463,0.00012049,2]
[347672170,1736047852856,-500.0,0.00012049,2]
[347672172,1736047852866,-369.15713692,0.00012049,2]
[347672173,1736047852875,-500.0,0.00012049,2]
[347672175,1736047852884,-502.73497936,0.00012049,2]
[347672177,1736047852893,-500.0,0.00012049,2]
[347672179,1736047852903,-500.0,0.00012049,2]
[347672181,1736047852913,-500.0,0.00012049,2]
[347672184,1736047852922,-500.0,0.00012049,2]
[347672185,1736047852931,-500.0,0.00012049,2]
[347672187,1736047852941,-501.37310251,0.00012049,2]
[347672189,1736047852950,-500.0,0.00012049,2]
[347672191,1736047852959,-500.0,0.00012049,2]
[347672193,1736047852968,-500.0,0.00012049,2]
[347672195,1736047852978,-500.0,0.00012049,2]
[347672197,1736047852987,-500.0,0.00012049,2]
[347672199,1736047852995,-500.0,0.00012049,2]
[347672201,1736047853005,-500.0,0.00012049,2]
[347672203,1736047853014,-500.0,0.00012049,2]
[347672205,1736047853023,-500.0,0.00012049,2]
[347672207,1736047853032,-500.0,0.00012049,2]
[347672209,1736047853042,-500.0,0.00012049,2]
[347672211,1736047853052,-500.0,0.00012049,2]
[347672213,1736047853061,-500.0,0.00012049,2]
[347672215,1736047853070,-500.0,0.00012049,2]
[347672217,1736047853080,-500.0,0.00012049,2]
[347672219,1736047853089,-500.0,0.00012049,2]
[347672221,1736047853098,-500.0,0.00012049,2]
[347672223,1736047853107,-500.0,0.00012049,2]
[347672225,1736047853116,-500.0,0.00012049,2]
[347672227,1736047853125,-500.0,0.00012049,2]
[347672229,1736047853134,-500.0,0.00012049,2]
[347672231,1736047853143,-500.0,0.00012049,2]
[347672233,1736047853152,-500.0,0.00012049,2]
[347672235,1736047853161,-500.0,0.00012049,2]
[347672237,1736047853170,-556.87,0.00012049,2]
[347672239,1736047853179,-500.0,0.00012049,2]
[347672241,1736047853189,-500.0,0.00012049,2]
[347672243,1736047853198,-500.0,0.00012049,2]
[347672245,1736047853208,-515.36,0.00012049,2]
[347672247,1736047853217,-589.90147668,0.00012049,2]
[347672249,1736047853227,-500.0,0.00012049,2]
[347672251,1736047853237,-500.0,0.00012049,2]
[347672253,1736047853246,-500.0,0.00012049,2]
[347672255,1736047853256,-500.0,0.00012049,2]
[347672257,1736047853266,-500.0,0.00012049,2]
[347672259,1736047853275,-500.0,0.00012049,2]
[347672261,1736047853284,-500.0,0.00012049,2]
[347672263,1736047853295,-500.0,0.00012049,2]
[347672265,1736047853304,-500.0,0.00012049,2]
[347672267,1736047853313,-500.0,0.00012049,2]
[347672269,1736047853323,-500.0,0.00012049,2]
[347672271,1736047853332,-500.0,0.00012049,2]
[347672273,1736047853341,-500.0,0.00012049,2]
[347672275,1736047853350,-500.0,0.00012049,2]
[347672277,1736047853359,-602.69,0.00012049,2]
[347672279,1736047853369,-500.0,0.00012049,2]
[347672281,1736047853378,-532.79,0.00012049,2]
[347672283,1736047853387,-500.0,0.00012049,2]
[347672285,1736047853396,-500.0,0.00012049,2]
[347672287,1736047853406,-500.0,0.00012049,2]
[347672289,1736047853415,-500.0,0.00012049,2]
[347672291,1736047853424,-500.0,0.00012049,2]
[347672293,1736047853433,-500.0,0.00012049,2]
[347672295,1736047853442,-500.0,0.00012049,2]
[347672297,1736047853452,-500.0,0.00012049,2]
[347672299,1736047853461,-539.94852548,0.00012049,2]
[347672301,1736047853471,-500.0,0.00012049,2]
[347672303,1736047853480,-500.0,0.00012049,2]
[347672305,1736047853488,-500.0,0.00012049,2]
[347672307,1736047853498,-500.0,0.00012049,2]
[347672309,1736047853507,-500.0,0.00012049,2]
[347672311,1736047853517,-503.88920564,0.00012049,2]
[347672313,1736047853526,-500.0,0.00012049,2]
[347672315,1736047853535,-500.0,0.00012049,2]
[347672317,1736047853549,-500.0,0.00012049,2]
[347672319,1736047853557,-500.0,0.00012049,2]
[347672321,1736047853566,-500.0,0.00012049,2]
[347672323,1736047853576,-500.0,0.00012049,2]
[347672325,1736047853586,-500.0,0.00012049,2]
[347672327,1736047853595,-500.0,0.00012049,2]
[347672329,1736047853604,-500.0,0.00012049,2]
[347672331,1736047853613,-500.0,0.00012049,2]
[347672333,1736047853623,-500.0,0.00012049,2]
[347672335,1736047853632,-500.0,0.00012049,2]
[347672337,1736047853642,-500.0,0.00012049,2]
[347672339,1736047853651,-500.0,0.00012049,2]
[347672341,1736047853660,-593.72,0.00012049,2]
[347672343,1736047853669,-500.0,0.00012049,2]
[347672345,1736047853678,-500.0,0.00012049,2]
[347672347,1736047853687,-500.0,0.00012049,2]
[347672349,1736047853698,-500.0,0.00012049,2]
[347672351,1736047853707,-500.0,0.00012049,2]
[347672353,1736047853717,-500.0,0.00012049,2]
[347672355,1736047853727,-500.0,0.00012049,2]
[347672357,1736047853736,-500.0,0.00012049,2]
[347672359,1736047853746,-500.0,0.00012049,2]
[347672361,1736047853755,-500.0,0.00012049,2]
[347672363,1736047853764,-500.0,0.00012049,2]
[347672365,1736047853772,-503.19545241,0.00012049,2]
[347672367,1736047853782,-502.68449017,0.00012049,2]
[347672369,1736047853791,-140.81067584,0.00012049,2]
[347672373,1736047853813,-359.18932416,0.00012049,2]
[347672375,1736047853823,-142.58174284,0.00012049,2]
[347672376,1736047853834,-357.41825716,0.00012049,2]
[347672377,1736047853842,-500.0,0.00012049,2]
[347672378,1736047853851,-500.0,0.00012049,2]
[347672379,1736047853860,-500.0,0.00012049,2]
[347672380,1736047853869,-382.82714944,0.00012049,2]
[347672381,1736047853985,-21.55714744,0.00012049,2]
[347672382,1736047853996,-96.55482051,0.00012049,2]
[347672383,1736047854005,-238.79020717,0.00012049,2]
[347672385,1736047854016,-261.20979283,0.00012049,2]
[347672386,1736047854025,-50.070067,0.00012049,2]
[347672388,1736047854064,-449.929933,0.00012049,2]
[347672389,1736047854074,-500.0,0.00012049,2]
[347672390,1736047854084,-500.0,0.00012049,2]
[347672391,1736047854093,-413.76832189,0.00012049,2]
[347672404,1736049031871,-291.36598435,8.219e-05,2]
[347672405,1736049031883,-316.34401565,8.219e-05,2]
[347672406,1736049031892,-1090.84,8.219e-05,2]
[347672407,1736049031902,-500.0,9.314e-05,2]
[347672408,1736049031911,-353.23173824,9.314e-05,2]
[347672409,1736049032099,-500.0,9.314e-05,2]
[347672410,1736049032109,-508.05,9.314e-05,2]
[347672411,1736049032119,-503.6427584,9.314e-05,2]
[347672412,1736049032128,-27.26241852,9.314e-05,2]
[347672413,1736049032140,-474.79012235,9.314e-05,2]
[347672414,1736049032149,-503.63644525,9.314e-05,2]
[347672415,1736049032158,-500.5207738,9.314e-05,2]
[347672416,1736049032168,-501.25827184,9.314e-05,2]
[347672417,1736049032177,-506.31915984,9.314e-05,2]
[347672418,1736049032187,-508.62583126,9.314e-05,2]
[347672419,1736049032196,-504.24058277,9.314e-05,2]
[347672420,1736049032205,-501.11752298,9.314e-05,2]
[347672421,1736049032215,-500.0,9.314e-05,2]
[347672422,1736049032224,-503.29250799,9.314e-05,2]
[347672423,1736049032234,-507.08495417,9.314e-05,2]
[347672424,1736049032244,-311.55298937,9.314e-05,2]
[347672425,1736049032255,-502.51929185,9.314e-05,2]
[347672426,1736049032264,-502.70870971,9.314e-05,2]
[347672427,1736049032275,-503.44677456,9.314e-05,2]
[347672428,1736049032284,-504.73243837,9.314e-05,2]
[347672429,1736049032293,-502.94925973,9.314e-05,2]
[347672430,1736049032303,-635.41652163,9.314e-05,2]
[347672431,1736049032313,-501.8618181,9.314e-05,2]
[347672432,1736049032323,-500.0,9.314e-05,2]
[347672433,1736049032333,-504.63782998,9.314e-05,2]
[347672434,1736049032342,-500.30031005,9.314e-05,2]
[347672435,1736049032352,-500.28062517,9.314e-05,2]
[347672436,1736049032361,-501.82445732,9.314e-05,2]
[347672437,1736049032371,-505.10148743,9.314e-05,2]
[347672438,1736049032380,-500.4445326,9.314e-05,2]
[347672440,1736049032390,-500.0,9.314e-05,2]
[347672442,1736049032400,-500.44818483,9.314e-05,2]
[347672444,1736049032409,-501.98583879,9.314e-05,2]
[347672446,1736049032419,-501.41752869,9.314e-05,2]
[347672448,1736049032428,-500.0,9.314e-05,2]
[347672450,1736049032438,-501.80493386,9.314e-05,2]
[347672451,1736049032447,-503.5403806,9.314e-05,2]
[347672454,1736049032456,-501.46011545,9.314e-05,2]
[347672455,1736049032466,-505.00201699,9.314e-05,2]
[347672457,1736049032475,-502.26956064,9.314e-05,2]
[347672459,1736049032484,-500.0,9.314e-05,2]
[347672460,1736049032493,-505.45386842,9.314e-05,2]
[347672461,1736049032503,-503.67293687,9.314e-05,2]
[347672462,1736049032512,-501.6643425,9.314e-05,2]
[347672463,1736049032522,-503.57872958,9.314e-05,2]
[347672464,1736049032531,-503.25771774,9.314e-05,2]
[347672465,1736049032540,-503.50949198,9.314e-05,2]
[347672466,1736049032549,-500.79602575,9.314e-05,2]
[347672467,1736049032558,-501.63612714,9.314e-05,2]
[347672468,1736049032568,-514.95762735,9.314e-05,2]
[347672469,1736049032577,-513.81776369,9.314e-05,2]
[347672470,1736049032586,-501.11703312,9.314e-05,2]
[347672471,1736049032595,-500.0,9.314e-05,2]
[347672472,1736049032604,-492.52238073,9.314e-05,2]
[347672473,1736049032614,-500.0,9.314e-05,2]
[347672474,1736049032623,-501.06770437,9.314e-05,2]
[347672475,1736049032632,-157.408558,9.314e-05,2]
[347672476,1736049032641,-500.45902731,9.314e-05,2]
[347672477,1736049032650,-501.18545952,9.314e-05,2]
[347672478,1736049032659,-508.65907516,9.314e-05,2]
[347672479,1736049032669,-500.0,9.314e-05,2]
[347672480,1736049032678,-502.39608377,9.314e-05,2]
[347672481,1736049032688,-500.76673666,9.314e-05,2]
[347672482,1736049032697,-500.0,9.314e-05,2]
[347672483,1736049032707,-500.0,9.314e-05,2]
[347672484,1736049032716,-500.0,9.314e-05,2]
[347672485,1736049032726,-500.0,9.314e-05,2]
[347672486,1736049032735,-500.0,9.314e-05,2]
[347672487,1736049032744,-500.0,9.314e-05,2]
[347672488,1736049032754,-500.0,9.314e-05,2]
[347672489,1736049032763,-501.34433022,9.314e-05,2]
[347672490,1736049032772,-500.0,9.314e-05,2]
[347672491,1736049032782,-500.0,9.314e-05,2]
[347672492,1736049032791,-500.0,9.314e-05,2]
[347672493,1736049032800,-502.61910987,9.314e-05,2]
[347672494,1736049032809,-500.0,9.314e-05,2]
[347672495,1736049032819,-500.0,9.314e-05,2]
[347672496,1736049032828,-500.0,9.314e-05,2]
[347672497,1736049032838,-500.0,9.314e-05,2]
[347672498,1736049032847,-580.36,9.314e-05,2]
[347672499,1736049032856,-500.0,9.314e-05,2]
[347672500,1736049032866,-500.0,9.314e-05,2]
[347672501,1736049032875,-500.0,9.314e-05,2]
[347672502,1736049032885,-773.57,9.314e-05,2]
[347672503,1736049032894,-501.64700708,9.314e-05,2]
[347672504,1736049032904,-500.84221088,9.314e-05,2]
[347672505,1736049032914,-500.0,9.314e-05,2]
[347672506,1736049032923,-581.69,9.314e-05,2]
[347672507,1736049032933,-500.0,9.314e-05,2]
[347672508,1736049032942,-500.0,9.314e-05,2]
[347672509,1736049032952,-500.10951618,9.314e-05,2]
[347672510,1736049032961,-500.0,9.314e-05,2]
[347672511,1736049032971,-501.9621809,9.314e-05,2]
[347672512,1736049032980,-500.0,9.314e-05,2]
[347672513,1736049032990,-500.28994921,9.314e-05,2]
[347672514,1736049032999,-500.0,9.314e-05,2]
[347672515,1736049033009,-662.55,9.314e-05,2]
[347672516,1736049033019,-500.0,9.314e-05,2]
[347672517,1736049033029,-500.36215106,9.314e-05,2]
[347672518,1736049033039,-500.0,9.314e-05,2]
[347672519,1736049033049,-500.0,9.314e-05,2]
[347672520,1736049033059,-945.12,9.314e-05,2]
[347672521,1736049033069,-500.33417735,9.314e-05,2]
[347672522,1736049033078,-500.0,9.314e-05,2]
[347672523,1736049033088,-500.0,9.314e-05,2]
[347672524,1736049033097,-500.0,9.314e-05,2]
[347672525,1736049033107,-500.0,9.314e-05,2]
[347672526,1736049033117,-1301.06,9.314e-05,2]
[347672527,1736049033126,-369.3,9.503e-05,2]
[347672528,1736049033136,-250.0,9.588e-05,2]
[347672529,1736049033145,-183.82852662,9.588e-05,2]
[347672530,1736049033156,-406.17087841,9.588e-05,2]
[347672531,1736049033166,-500.0,9.588e-05,2]
[347672532,1736049033176,-435.61265931,9.588e-05,2]
[347672533,1736049033186,-500.0,9.588e-05,2]
[347672534,1736049033197,-509.27907839,9.588e-05,2]
[347672535,1736049033207,-500.0,9.588e-05,2]
[347672536,1736049033217,-430.15,9.588e-05,2]
[347672537,1736049033226,-500.84,9.588e-05,2]
[347672538,1736049033236,-773.57,9.588e-05,2]
[347672539,1736049033246,-500.0,9.588e-05,2]
[347672540,1736049033255,-662.55,9.588e-05,2]
[347672541,1736049033265,-500.0,9.588e-05,2]
[347672542,1736049033275,-536.83606334,9.588e-05,2]
[347672543,1736049033284,-945.12,9.588e-05,2]
[347672544,1736049033294,-500.0,9.588e-05,2]
[347672545,1736049033303,-500.0,9.588e-05,2]
[347672546,1736049033313,-1301.06,9.588e-05,2]
[347672547,1736049033323,-275.87,9.814e-05,2]
[347672548,1736049033332,-500.0,9.862e-05,2]
[347672549,1736049033342,-500.0,9.862e-05,2]
[347672550,1736049033351,-371.44578245,9.862e-05,2]
[347672551,1736049033360,-325.97061035,9.862e-05,2]
[347672552,1736049033370,-348.32225176,9.862e-05,2]
[347672553,1736049033379,-773.57,9.862e-05,2]
[347672554,1736049033388,-500.0,9.862e-05,2]
[347672555,1736049033397,-662.55,9.862e-05,2]
[347672556,1736049033407,-471.76989068,9.862e-05,2]
[347672557,1736049033417,-945.12,9.862e-05,2]
[347672558,1736049033426,-500.0,9.862e-05,2]
[347672559,1736049033436,-500.0,9.862e-05,2]
[347672560,1736049033445,-1301.06,9.862e-05,2]
[347672561,1736049033455,-10026.72123956,0.0001,2]
[347672562,1736049033464,-5938.0,0.0001,2]
[347672563,1736049033474,-500.0,0.00010133,2]
[347672564,1736049033483,-500.0,0.00010133,2]
[347672565,1736049033492,-500.0,0.00010133,2]
[347672566,1736049033502,-500.0,0.00010133,2]
[347672567,1736049033511,-2045.31,0.00010133,2]
[347672568,1736049033520,-950.75,0.00010133,2]
[347672569,1736049033530,-500.0,0.00010133,2]
[347672570,1736049033540,-592.19,0.00010133,2]
[347672571,1736049033549,-500.0,0.00010133,2]
[347672572,1736049033558,-1362.81,0.00010133,2]
[347672573,1736049033567,-500.0,0.00010133,2]
[347672574,1736049033576,-500.0,0.00010133,2]
[347672575,1736049033586,-804.62,0.00010133,2]
[347672576,1736049033595,-500.0,0.00010133,2]
[347672577,1736049033604,-809.51,0.00010133,2]
[347672578,1736049033613,-500.0,0.00010133,2]
[347672579,1736049033623,-500.0,0.00010133,2]
[347672580,1736049033632,-500.0,0.00010133,2]
[347672581,1736049033642,-500.0,0.00010133,2]
[347672582,1736049033652,-504.99,0.00010133,2]
[347672583,1736049033661,-1298.8,0.00010133,2]
[347672584,1736049033670,-500.0,0.00010133,2]
[347672585,1736049033680,-500.0,0.00010133,2]
[347672586,1736049033690,-500.0,0.00010133,2]
[347672587,1736049033699,-500.0,0.00010133,2]
[347672588,1736049033709,-680.54,0.00010134,2]
[347672589,1736049033719,-405.07738516,0.00010134,2]
[347672590,1736049033728,-500.0,0.00010134,2]
[347672591,1736049033737,-501.032069,0.00010134,2]
[347672592,1736049033747,-500.0,0.00010134,2]
[347672593,1736049033756,-501.09343759,0.00010134,2]
[347672594,1736049033765,-500.0,0.00010134,2]
[347672595,1736049033774,-500.0,0.00010134,2]
[347672596,1736049033783,-500.0,0.00010134,2]
[347672597,1736049033793,-500.0,0.00010134,2]
[347672598,1736049033802,-500.0,0.00010134,2]
[347672599,1736049033811,-501.08612086,0.00010134,2]
[347672600,1736049033820,-500.0,0.00010134,2]
[347672601,1736049033829,-501.2310815,0.00010134,2]
[347672602,1736049033838,-500.0,0.00010134,2]
[347672603,1736049033847,-500.0,0.00010134,2]
[347672604,1736049033857,-501.20862771,0.00010134,2]
[347672605,1736049033866,-500.0,0.00010134,2]
[347672606,1736049033876,-500.0,0.00010134,2]
[347672607,1736049033885,-500.0,0.00010134,2]
[347672608,1736049033894,-500.0,0.00010134,2]
[347672609,1736049033903,-500.0,0.00010134,2]
[347672610,1736049033914,-500.0,0.00010134,2]
[347672611,1736049033923,-500.0,0.00010134,2]
[347672612,1736049033932,-501.10071472,0.00010134,2]
[347672613,1736049033941,-500.0,0.00010134,2]
[347672614,1736049033954,-501.07671189,0.00010134,2]
[347672615,1736049033964,-500.0,0.00010134,2]
[347672616,1736049033973,-500.0,0.00010134,2]
[347672617,1736049033982,-500.0,0.00010134,2]
[347672618,1736049033992,-500.0,0.00010134,2]
[347672619,1736049034002,-500.0,0.00010134,2]
[347672620,1736049034011,-500.0,0.00010134,2]
[347672621,1736049034020,-500.0,0.00010134,2]
[347672622,1736049034031,-500.0,0.00010134,2]
[347672623,1736049034040,-500.0,0.00010134,2]
[347672624,1736049034049,-500.0,0.00010134,2]
[347672625,1736049034057,-500.0,0.00010134,2]
[347672626,1736049034066,-500.0,0.00010134,2]
[347672627,1736049034075,-500.0,0.00010134,2]
[347672628,1736049034084,-500.0,0.00010134,2]
[347672629,1736049034093,-500.0,0.00010134,2]
[347672630,1736049034102,-500.0,0.00010134,2]
[347672631,1736049034111,-500.0,0.00010134,2]
[347672632,1736049034120,-500.0,0.00010134,2]
[347672633,1736049034130,-500.0,0.00010134,2]
[347672634,1736049034139,-500.0,0.00010134,2]
[347672635,1736049034148,-500.0,0.00010134,2]
[347672636,1736049034158,-500.0,0.00010134,2]
[347672637,1736049034167,-500.96296427,0.00010134,2]
[347672638,1736049034177,-500.0,0.00010134,2]
[347672639,1736049034187,-500.0,0.00010134,2]
[347672640,1736049034196,-500.0,0.00010134,2]
[347672641,1736049034206,-500.0,0.00010134,2]
[347672642,1736049034215,-500.0,0.00010134,2]
[347672643,1736049034225,-500.0,0.00010134,2]
[347672644,1736049034235,-500.0,0.00010134,2]
[347672645,1736049034245,-500.0,0.00010134,2]
[347672646,1736049034254,-500.0,0.00010134,2]
[347672647,1736049034263,-500.0,0.00010134,2]
[347672648,1736049034273,-500.0,0.00010134,2]
[347672649,1736049034283,-500.51174293,0.00010134,2]
[347672650,1736049034292,-500.0,0.00010134,2]
[347672651,1736049034302,-500.0,0.00010134,2]
[347672652,1736049034312,-500.0,0.00010134,2]
[347672653,1736049034321,-500.0,0.00010134,2]
[347672654,1736049034331,-500.0,0.00010134,2]
[347672655,1736049034341,-500.0,0.00010134,2]
[347672656,1736049034350,-500.0,0.00010134,2]
[347672657,1736049034359,-500.0,0.00010134,2]
[347672658,1736049034369,-500.0,0.00010134,2]
[347672659,1736049034378,-500.0,0.00010134,2]
[347672660,1736049034388,-614.23,0.00010134,2]
[347672661,1736049034397,-500.0,0.00010134,2]
[347672662,1736049034407,-500.0,0.00010134,2]
[347672663,1736049034416,-500.0,0.00010134,2]
[347672664,1736049034426,-500.0,0.00010134,2]
[347672665,1736049034435,-500.0,0.00010134,2]
[347672666,1736049034445,-595.44,0.00010134,2]
[347672667,1736049034454,-500.0,0.00010134,2]
[347672668,1736049034464,-500.0,0.00010134,2]
[347672669,1736049034474,-500.0,0.00010134,2]
[347672670,1736049034483,-216.58066,0.00010134,2]
[347672671,1736049034493,-500.0,0.00010134,2]
[347672672,1736049034502,-500.0,0.00010134,2]
[347672673,1736049034511,-500.0,0.00010134,2]
[347672674,1736049034521,-500.0,0.00010134,2]